fUST/lending_fUST_20250406
["ID","MTS","AMOUNT","RATE_DAILY","PERIOD"]
[357190026,1743876642621,-500.0,0.00021082,2]
[357190027,1743876642630,-500.0,0.00021082,2]
[357190028,1743876642640,-500.0,0.00021092,2]
[357190029,1743876642649,-579.199607,0.00021092,2]
[357190030,1743876642658,-99.61683757,0.00021092,2]
[357190031,1743876642670,-479.58276943,0.00021092,2]
[357190032,1743876642679,-358.967043,0.00021092,2]
[357190033,1743876642689,-358.967043,0.00021092,2]
[357190034,1743876642698,-151.0,0.00021092,2]
[357190035,1743876642707,-151.0,0.00021092,2]
[357190036,1743876642717,-151.0,0.00021092,2]
[357190037,1743876642726,-204.819555,0.00021092,2]
[357190038,1743876642736,-204.819555,0.00021092,2]
[357190039,1743876642745,-265.726754,0.00021092,2]
[357190040,1743876642754,-265.726754,0.00021092,2]
[357190041,1743876642763,-459.65,0.00021092,2]
[357190042,1743876642772,-151.0,0.00021092,2]
[357190043,1743876642782,-502.063868,0.00021092,2]
[357190044,1743876642795,-174.489692,0.00021092,2]
[357190045,1743876642804,-502.063868,0.00021092,2]
[357190046,1743876642814,-174.489692,0.00021092,2]
[357190047,1743876642824,-151.0,0.00021092,2]
[357190048,1743876642834,-205.591481,0.00021092,2]
[357190049,1743876642843,-205.591481,0.00021092,2]
[357190050,1743876642852,-577.67686,0.00021092,2]
[357190051,1743876642861,-500.0,0.0002111,2]
[357190052,1743876642871,-868.39081395,0.0002111,2]
[357190053,1743876642880,-500.0,0.0002111,2]
[357190054,1743876642889,-500.0,0.0002111,2]
[357190055,1743876642900,-500.0,0.0002111,2]
[357190056,1743876642910,-500.0,0.0002111,2]
[357190058,1743876642919,-151.0,0.0002111,2]
[357190060,1743876642928,-1012.31193713,0.0002111,2]
[357190061,1743876642940,-594.26777387,0.0002111,2]
[357190062,1743876642949,-952.51822667,0.0002111,2]
[357190065,1743876643778,-577.67686,0.00021092,2]
[357190066,1743876643788,-654.06148433,0.0002111,2]
[357190067,1743876643797,-151.0,0.0002111,2]
[357190068,1743876643807,-269.546241,0.0002111,2]
[357190069,1743876643816,-151.0,0.0002111,2]
[357190070,1743876643825,-151.0,0.0002111,2]
[357190071,1743876643835,-1837.423278,0.0002111,2]
[357190072,1743876643844,-1837.423278,0.0002111,2]
[357190073,1743876643854,-586.787765,0.0002111,2]
[357190074,1743876643863,-586.787765,0.0002111,2]
[357190075,1743876643873,-500.0,0.00021137,2]
[357190076,1743876643884,-500.0,0.00021137,2]
[357190077,1743876643893,-649.88,0.00021137,2]
[357190078,1743876643903,-500.0,0.00021137,2]
[357190079,1743876643913,-500.0,0.00021137,2]
[357190080,1743876643923,-151.0,0.00021137,2]
[357190081,1743876643933,-265.493442,0.00021137,2]
[357190082,1743876643943,-265.493442,0.00021137,2]
[357190083,1743876643953,-151.0,0.00021137,2]
[357190084,1743876643963,-215.34589,0.00021137,2]
[357190085,1743876643973,-215.34589,0.00021137,2]
[357190086,1743876643984,-151.0,0.00021164,2]
[357190087,1743876643994,-151.0,0.00021164,2]
[357190088,1743876644006,-279.791153,0.00021164,2]
[357190089,1743876644015,-151.0,0.00021164,2]
[357190090,1743876644024,-151.0,0.00021164,2]
[357190091,1743876644034,-156.530432,0.00021164,2]
[357190092,1743876644043,-156.530432,0.00021164,2]
[357190093,1743876644052,-247.951799,0.00021164,2]
[357190094,1743876644061,-247.951799,0.00021164,2]
[357190095,1743876644071,-502.65171959,0.00021164,2]
[357190096,1743876644080,-500.0,0.00021164,2]
[357190097,1743876644096,-500.0,0.00021164,2]
[357190098,1743876644105,-885.79893892,0.00021164,2]
[357190099,1743876644115,-500.0,0.00021265,2]
[357190100,1743876644126,-500.0,0.00021266,2]
[357190101,1743876644137,-500.0,0.00021266,2]
[357190102,1743876644147,-1289.97,0.00021266,2]
[357190103,1743876644157,-151.0,0.00021279,2]
[357190104,1743876644168,-151.0,0.00021279,2]
[357190105,1743876644178,-151.0,0.00021279,2]
[357190106,1743876644187,-237.871704,0.00021279,2]
[357190107,1743876644196,-237.871704,0.00021279,2]
[357190108,1743876644205,-2566.5656119,0.00021279,3]
[357190109,1743876644214,-339.93,0.00021366,2]
[357190110,1743876644224,-1540.58405305,0.00021494,2]
[357190111,1743876644233,-500.0,0.00021539,2]
[357190112,1743876644242,-500.0,0.0002154,2]
[357190113,1743876644251,-500.0,0.0002154,2]
[357190114,1743876644260,-1289.97,0.0002154,2]
[357190115,1743876644269,-500.0,0.00021813,2]
[357190116,1743876644279,-500.0,0.00021814,2]
[357190117,1743876644288,-500.0,0.00021814,2]
[357190118,1743876644297,-1289.97,0.00021814,2]
[357190119,1743876644307,-1000.0,0.0002185,5]
[357190120,1743876644316,-200.0,0.00021917,2]
[357190121,1743876644326,-301.08564543,0.00021918,2]
[357190122,1743876644336,-2566.5656119,0.00021969,3]
[357190123,1743876644345,-1053.77238386,0.00022,2]
[357190124,1743876644357,-1257.93761614,0.00022,2]
[357190125,1743876644368,-196.21593128,0.00022,2]
[357190126,1743876644382,-500.0,0.00022053,2]
[357190127,1743876644392,-500.0,0.00022087,2]
[357190128,1743876644401,-500.0,0.00022088,2]
[357190129,1743876644411,-500.0,0.00022088,2]
[357190130,1743876644420,-1289.97,0.00022088,2]
[357190131,1743876644430,-151.0,0.0002215,7]
[357190132,1743876644439,-151.0,0.0002215,7]
[357190133,1743876644448,-215.0738,0.00022174,2]
[357190134,1743876644458,-500.0,0.00022361,2]
[357190135,1743876644467,-500.0,0.00022362,2]
[357190136,1743876644477,-500.0,0.00022362,2]
[357190137,1743876644486,-1289.97,0.00022362,2]
[357190138,1743876644496,-2667.79176154,0.00022403,2]
[357190179,1743877545133,-221.2414555,0.00017704,2]
[357190180,1743877545154,-300.0,0.00017728,2]
[357190181,1743877545174,-2356.97678886,0.00017729,2]
[357190255,1743877832675,-300.0,0.00017728,2]
[357190257,1743877832685,-15284.19445364,0.00017729,2]
[357190259,1743877832695,-1311.57557441,0.0001815,2]
[357190261,1743877832704,-245.62913353,0.000182,2]
[357190263,1743877832713,-500.0,0.00018249,2]
[357190264,1743877832722,-500.0,0.00018249,2]
[357190265,1743877832732,-500.0,0.00018249,2]
[357190266,1743877832742,-500.0,0.00018249,2]
[357190267,1743877832751,-500.0,0.00018249,2]
[357190268,1743877832760,-500.0,0.00018249,2]
[357190269,1743877832770,-500.0,0.00018249,2]
[357190270,1743877832779,-500.0,0.00018249,2]
[357190271,1743877832789,-500.0,0.00018249,2]
[357190281,1743877832941,-500.0,0.00018249,2]
[357190282,1743877832951,-500.0,0.00018249,2]
[357190283,1743877832960,-500.0,0.00018249,2]
[357190284,1743877832970,-500.0,0.0001825,2]
[357190285,1743877832979,-500.0,0.0001825,2]
[357190286,1743877832989,-500.0,0.0001825,2]
[357190287,1743877832998,-500.0,0.0001825,2]
[357190288,1743877833007,-500.0,0.0001825,2]
[357190289,1743877833017,-412.20674668,0.0001825,2]
[357190290,1743877833027,-500.0,0.0001825,2]
[357190291,1743877833037,-500.0,0.0001825,2]
[357190292,1743877833047,-500.0,0.0001825,2]
[357190293,1743877833057,-504.44106493,0.0001825,2]
[357190294,1743877833067,-500.0,0.0001825,2]
[357190295,1743877833077,-500.0,0.0001825,2]
[357190296,1743877833086,-312.77199116,0.0001825,2]
[357190297,1743877833096,-500.0,0.0001825,2]
[357190298,1743877833106,-500.0,0.0001825,2]
[357190299,1743877833116,-500.0,0.0001825,2]
[357190300,1743877833125,-500.0,0.0001825,2]
[357190301,1743877833135,-500.0,0.0001825,2]
[357190302,1743877833144,-500.0,0.0001825,2]
[357190303,1743877833153,-500.0,0.0001825,2]
[357190304,1743877833163,-500.0,0.0001825,2]
[357190305,1743877833172,-500.0,0.0001825,2]
[357190306,1743877833182,-500.0,0.0001825,2]
[357190307,1743877833191,-500.0,0.0001825,2]
[357190308,1743877833201,-500.0,0.0001825,2]
[357190309,1743877833210,-500.0,0.0001825,2]
[357190310,1743877833220,-500.0,0.0001825,2]
[357190311,1743877833230,-500.0,0.0001825,2]
[357190312,1743877833240,-500.0,0.0001825,2]
[357190313,1743877833249,-500.0,0.0001825,2]
[357190314,1743877833258,-500.0,0.0001825,2]
[357190315,1743877833268,-500.0,0.0001825,2]
[357190316,1743877833278,-500.0,0.0001825,2]
[357190317,1743877833287,-500.0,0.0001825,2]
[357190318,1743877833297,-500.0,0.0001825,2]
[357190319,1743877833306,-500.0,0.0001825,2]
[357190320,1743877833316,-500.0,0.0001825,2]
[357190321,1743877833326,-500.0,0.0001825,2]
[357190322,1743877833335,-1018.99,0.0001825,2]
[357190323,1743877833344,-500.0,0.0001825,2]
[357190324,1743877833353,-500.0,0.0001825,2]
[357190325,1743877833363,-500.0,0.0001825,2]
[357190326,1743877833372,-500.0,0.00018351,2]
[357190327,1743877833382,-211.18705404,0.00018424,2]
[357190328,1743877833391,-500.0,0.00018523,2]
[357190329,1743877833400,-500.0,0.00018523,2]
[357190330,1743877833410,-500.0,0.00018523,2]
[357190331,1743877833419,-483.41711941,0.00018523,2]
[357190332,1743877833429,-500.0,0.00018523,2]
[357190333,1743877833438,-500.0,0.00018523,2]
[357190334,1743877833448,-500.0,0.00018523,2]
[357190335,1743877833457,-500.0,0.00018523,2]
[357190336,1743877833466,-500.0,0.00018523,2]
[357190337,1743877833476,-500.0,0.00018523,2]
[357190338,1743877833485,-500.0,0.00018523,2]
[357190339,1743877833498,-500.0,0.00018523,2]
[357190340,1743877833507,-477.74621461,0.00018524,2]
[357190341,1743877833519,-22.25378539,0.00018524,2]
[357190342,1743877833530,-500.0,0.00018524,2]
[357190343,1743877833541,-500.0,0.00018524,2]
[357190344,1743877833550,-500.0,0.00018524,2]
[357190345,1743877833559,-500.0,0.00018524,2]
[357190346,1743877833570,-500.0,0.00018524,2]
[357190347,1743877833580,-500.0,0.00018524,2]
[357190348,1743877833590,-500.0,0.00018524,2]
[357190349,1743877833599,-425.82395474,0.00018524,2]
[357190370,1743877838443,-500.0,0.00018523,2]
[357190371,1743877838453,-392.9624609,0.00018523,2]
[357190372,1743877838463,-74.17604526,0.00018524,2]
[357190373,1743877838473,-496.89018221,0.00018524,2]
[357190374,1743877838485,-3.10981779,0.00018524,2]
[357190375,1743877838497,-500.0,0.00018524,2]
[357190376,1743877838507,-500.0,0.00018524,2]
[357190377,1743877838518,-500.0,0.00018524,2]
[357190378,1743877838528,-500.0,0.00018524,2]
[357190379,1743877838538,-500.0,0.00018524,2]
[357190380,1743877838548,-500.0,0.00018524,2]
[357190381,1743877838557,-500.0,0.00018524,2]
[357190382,1743877838567,-500.0,0.00018524,2]
[357190383,1743877838578,-500.0,0.00018524,2]
[357190384,1743877838588,-500.0,0.00018524,2]
[357190385,1743877838597,-500.0,0.00018524,2]
[357190386,1743877838607,-500.0,0.00018524,2]
[357190387,1743877838616,-500.0,0.00018524,2]
[357190388,1743877838626,-500.0,0.00018524,2]
[357190389,1743877838636,-500.0,0.00018524,2]
[357190390,1743877838645,-500.0,0.00018524,2]
[357190391,1743877838655,-500.0,0.00018524,2]
[357190392,1743877838664,-500.0,0.00018524,2]
[357190393,1743877838674,-500.0,0.00018524,2]
[357190394,1743877838683,-500.0,0.00018524,2]
[357190395,1743877838693,-500.0,0.00018524,2]
[357190396,1743877838702,-500.0,0.00018524,2]
[357190397,1743877838711,-500.0,0.00018524,2]
[357190398,1743877838721,-500.0,0.00018524,2]
[357190399,1743877838730,-631.25999204,0.00018524,2]
[357190400,1743877838740,-947.26356765,0.00018524,2]
[357190401,1743877838777,-71.72643235,0.00018524,2]
[357190402,1743877838786,-500.0,0.00018524,2]
[357190403,1743877838797,-210.87718764,0.00018524,2]
[357190404,1743877838809,-289.12281236,0.00018524,2]
[357190405,1743877838818,-30.87718764,0.00018524,2]
[357190481,1743877840803,-500.0,0.00018249,2]
[357190483,1743877840812,-500.0,0.00018523,2]
[357190486,1743877840822,-469.12281236,0.00018524,2]
[357190489,1743877840832,-500.0,0.00018625,2]
[357190491,1743877840841,-200.0,0.00018788,2]
[357190494,1743877840851,-220.24,0.00018789,3]
[357190497,1743877840860,-183.53,0.00018789,3]
[357190499,1743877840869,-500.0,0.00018797,2]
[357190501,1743877840878,-500.0,0.00018797,2]
[357190503,1743877840888,-500.0,0.00018797,2]
[357190505,1743877840897,-500.0,0.00018797,2]
[357190507,1743877840907,-455.61501519,0.00018797,2]
[357190509,1743877840916,-500.0,0.00018797,2]
[357190511,1743877840925,-500.0,0.00018797,2]
[357190513,1743877840935,-500.0,0.00018797,2]
[357190514,1743877840945,-500.0,0.00018797,2]
[357190516,1743877840954,-500.0,0.00018797,2]
[357190518,1743877840963,-500.0,0.00018797,2]
[357190520,1743877840973,-500.0,0.00018798,2]
[357190522,1743877840983,-500.0,0.00018798,2]
[357190523,1743877840992,-500.0,0.00018798,2]
[357190524,1743877841002,-500.0,0.00018798,2]
[357190525,1743877841011,-500.0,0.00018798,2]
[357190526,1743877841020,-500.0,0.00018798,2]
[357190527,1743877841030,-500.0,0.00018798,2]
[357190528,1743877841040,-500.0,0.00018798,2]
[357190529,1743877841049,-500.0,0.00018798,2]
[357190530,1743877841058,-500.0,0.00018798,2]
[357190531,1743877841068,-500.0,0.00018798,2]
[357190532,1743877841077,-500.0,0.00018798,2]
[357190533,1743877841087,-500.0,0.00018798,2]
[357190534,1743877841096,-500.0,0.00018798,2]
[357190535,1743877841105,-500.0,0.00018798,2]
[357190536,1743877841114,-500.0,0.00018798,2]
[357190537,1743877841124,-500.0,0.00018798,2]
[357190538,1743877841133,-500.0,0.00018798,2]
[357190539,1743877841143,-500.0,0.00018798,2]
[357190540,1743877841152,-500.0,0.00018798,2]
[357190541,1743877841162,-500.0,0.00018798,2]
[357190542,1743877841172,-500.0,0.00018798,2]
[357190543,1743877841181,-500.0,0.00018798,2]
[357190544,1743877841191,-500.0,0.00018798,2]
[357190545,1743877841201,-500.0,0.00018798,2]
[357190546,1743877841210,-500.0,0.00018798,2]
[357190547,1743877841219,-180.98023297,0.00018798,2]
[357190548,1743877841229,-570.7441679,0.00018798,2]
[357190549,1743877841239,-500.0,0.00018798,2]
[357190550,1743877841249,-500.0,0.00018798,2]
[357190551,1743877841258,-500.0,0.00018798,2]
[357190552,1743877841267,-500.0,0.00018798,2]
[357190553,1743877841277,-500.0,0.00018798,2]
[357190554,1743877841287,-500.0,0.00018798,2]
[357190555,1743877841296,-500.0,0.00018798,2]
[357190556,1743877841305,-500.0,0.00018798,2]
[357190557,1743877841315,-500.0,0.00018798,2]
[357190558,1743877841326,-500.0,0.00018798,2]
[357190559,1743877841335,-1018.99,0.00018798,2]
[357190560,1743877841345,-500.0,0.00018798,2]
[357190561,1743877841355,-500.0,0.00018798,2]
[357190562,1743877841364,-500.0,0.00018798,2]
[357190563,1743877841374,-24274.32385447,0.00018799,2]
[357190601,1743877843652,-500.0,0.00018249,2]
[357190603,1743877843662,-500.0,0.00018523,2]
[357190605,1743877843672,-500.0,0.00018797,2]
[357190607,1743877843681,-500.0,0.00018797,2]
[357190608,1743877843690,-7323.54361232,0.00018799,2]
[357190609,1743877843706,-4115.00000145,0.00018799,2]
[357190610,1743877843718,-38212.59053407,0.00018799,2]
[357190611,1743877843727,-500.0,0.00018899,2]
[357190612,1743877843736,-211.18705403,0.00018972,2]
[357190613,1743877843745,-2245.08546095,0.00019,2]
[357190614,1743877843755,-500.0,0.00019071,2]
[357190615,1743877843764,-500.0,0.00019071,2]
[357190616,1743877843774,-500.0,0.00019071,2]
[357190617,1743877843783,-500.0,0.00019071,2]
[357190618,1743877843793,-500.0,0.00019071,2]
[357190619,1743877843802,-500.0,0.00019071,2]
[357190620,1743877843811,-500.0,0.00019071,2]
[357190621,1743877843820,-500.0,0.00019071,2]
[357190622,1743877843830,-500.0,0.00019071,2]
[357190623,1743877843839,-500.0,0.00019071,2]
[357190624,1743877843848,-500.0,0.00019072,2]
[357190625,1743877843858,-500.0,0.00019072,2]
[357190626,1743877843867,-500.0,0.00019072,2]
[357190627,1743877843876,-500.0,0.00019072,2]
[357190628,1743877843885,-500.0,0.00019072,2]
[357190629,1743877843894,-500.0,0.00019072,2]
[357190630,1743877843903,-500.0,0.00019072,2]
[357190631,1743877843913,-500.0,0.00019072,2]
[357190632,1743877843922,-500.0,0.00019072,2]
[357190633,1743877843932,-500.0,0.00019072,2]
[357190634,1743877843941,-467.49245237,0.00019072,2]
[357190635,1743877843950,-500.0,0.00019072,2]
[357190636,1743877843959,-500.0,0.00019072,2]
[357190637,1743877843968,-500.0,0.00019072,2]
[357190638,1743877843977,-500.0,0.00019072,2]
[357190639,1743877843987,-500.0,0.00019072,2]
[357190640,1743877843996,-500.0,0.00019072,2]
[357190641,1743877844005,-500.0,0.00019072,2]
[357190642,1743877844015,-500.0,0.00019072,2]
[357190643,1743877844024,-500.0,0.00019072,2]
[357190644,1743877844033,-500.0,0.00019072,2]
[357190645,1743877844043,-500.0,0.00019072,2]
[357190646,1743877844052,-500.0,0.00019072,2]
[357190647,1743877844061,-500.0,0.00019072,2]
[357190648,1743877844071,-500.0,0.00019072,2]
[357190649,1743877844080,-500.0,0.00019072,2]
[357190650,1743877844090,-500.0,0.00019072,2]
[357190651,1743877844099,-500.0,0.00019072,2]
[357190652,1743877844117,-500.0,0.00019072,2]
[357190653,1743877844129,-500.0,0.00019072,2]
[357190654,1743877844139,-500.0,0.00019072,2]
[357190655,1743877844149,-500.0,0.00019072,2]
[357190656,1743877844159,-500.0,0.00019072,2]
[357190657,1743877844168,-500.0,0.00019072,2]
[357190658,1743877844179,-1018.99,0.00019072,2]
[357190659,1743877844189,-500.0,0.00019072,2]
[357190660,1743877844199,-500.0,0.00019072,2]
[357190661,1743877844208,-500.0,0.00019072,2]
[357190662,1743877844218,-500.0,0.00019073,2]
[357190663,1743877844227,-500.0,0.00019073,2]
[357190664,1743877844237,-500.0,0.00019073,2]
[357190665,1743877844247,-648.0,0.00019173,2]
[357190666,1743877844256,-500.0,0.00019345,2]
[357190667,1743877844266,-500.0,0.00019345,2]
[357190668,1743877844275,-500.0,0.00019345,2]
[357190669,1743877844285,-500.0,0.00019345,2]
[357190670,1743877844295,-500.0,0.00019345,2]
[357190671,1743877844304,-500.0,0.00019345,2]
[357190672,1743877844314,-500.0,0.00019345,2]
[357190673,1743877844324,-500.0,0.00019345,2]
[357190674,1743877844333,-500.0,0.00019345,2]
[357190675,1743877844344,-500.0,0.00019345,2]
[357190676,1743877844354,-500.0,0.00019346,2]
[357190677,1743877844363,-500.0,0.00019346,2]
[357190678,1743877844373,-500.0,0.00019346,2]
[357190682,1743877844524,-500.0,0.00019346,2]
[357190684,1743877844539,-500.0,0.00019346,2]
[357190685,1743877844548,-500.0,0.00019346,2]
[357190686,1743877844558,-500.0,0.00019346,2]
[357190687,1743877844567,-500.0,0.00019346,2]
[357190688,1743877844577,-500.0,0.00019346,2]
[357190689,1743877844587,-500.0,0.00019346,2]
[357190690,1743877844597,-500.0,0.00019346,2]
[357190691,1743877844606,-500.0,0.00019346,2]
[357190692,1743877844615,-500.0,0.00019346,2]
[357190693,1743877844625,-500.0,0.00019346,2]
[357190694,1743877844634,-500.0,0.00019346,2]
[357190695,1743877844644,-500.0,0.00019346,2]
[357190696,1743877844653,-500.0,0.00019346,2]
[357190697,1743877844663,-500.0,0.00019346,2]
[357190698,1743877844673,-500.0,0.00019346,2]
[357190699,1743877844686,-500.0,0.00019346,2]
[357190700,1743877844696,-500.0,0.00019346,2]
[357190701,1743877844705,-500.0,0.00019346,2]
[357190702,1743877844715,-500.0,0.00019346,2]
[357190703,1743877844725,-500.0,0.00019346,2]
[357190704,1743877844734,-500.0,0.00019346,2]
[357190705,1743877844744,-500.0,0.00019346,2]
[357190706,1743877844754,-500.0,0.00019346,2]
[357190707,1743877844763,-500.0,0.00019346,2]
[357190708,1743877844774,-500.0,0.00019346,2]
[357190709,1743877844784,-159.865979,0.00019346,2]
[357190710,1743877844793,-500.0,0.00019346,2]
[357190711,1743877844803,-1018.99,0.00019346,2]
[357190712,1743877844812,-467.751626,0.00019346,2]
[357190713,1743877844822,-500.0,0.00019346,2]
[357190714,1743877844831,-173.162771,0.00019346,2]
[357190715,1743877844840,-467.751626,0.00019346,2]
[357190716,1743877844849,-500.0,0.00019346,2]
[357190717,1743877844859,-500.0,0.00019346,2]
[357190718,1743877844869,-211.18705403,0.00019519,2]
[357190719,1743877844878,-500.0,0.00019619,2]
[357190720,1743877844887,-500.0,0.00019619,2]
[357190721,1743877844897,-500.0,0.00019619,2]
[357190722,1743877844907,-500.0,0.00019619,2]
[357190723,1743877844917,-500.0,0.0001962,2]
[357190724,1743877844927,-507.37495641,0.0001962,2]
[357190725,1743877844936,-548.90867575,0.0001962,2]
[357190726,1743877844945,-534.5,0.0001962,2]
[357190727,1743877844955,-475.05,0.0001962,2]
[357190728,1743877844964,-572.3,0.0001962,2]
[357190729,1743877844974,-548.9,0.0001962,2]
[357190730,1743877844983,-500.0,0.0001962,2]
[357190731,1743877844993,-500.0,0.0001962,2]
[357190732,1743877845003,-500.0,0.0001962,2]
[357190733,1743877845012,-500.0,0.0001962,2]
[357190734,1743877845021,-500.0,0.0001962,2]
[357190735,1743877845031,-500.0,0.0001962,2]
[357190736,1743877845040,-1018.99,0.0001962,2]
[357190737,1743877845050,-449.52,0.0001962,2]
[357190738,1743877845060,-184.16,0.0001962,2]
[357190739,1743877845070,-2245.08546081,0.00019624,2]
[357190740,1743877845079,-151.0,0.00019892,2]
[357190741,1743877845088,-151.0,0.00019892,2]
[357190742,1743877845098,-173.566259,0.00019892,2]
[357190743,1743877845111,-151.0,0.00019892,2]
[357190744,1743877845129,-173.566259,0.00019892,2]
[357190745,1743877845148,-1332.461852,0.00019892,2]
[357190746,1743877845158,-1332.461852,0.00019892,2]
[357190747,1743877845169,-151.0,0.00019892,2]
[357190748,1743877845178,-815.917203,0.00019892,2]
[357190749,1743877845187,-815.917203,0.00019892,2]
[357190750,1743877845197,-151.0,0.00019892,2]
[357190751,1743877845206,-151.0,0.00019892,2]
[357190752,1743877845216,-208.495409,0.00019892,2]
[357190753,1743877845225,-208.495409,0.00019892,2]
[357190754,1743877845235,-1125.103967,0.00019892,2]
[357190755,1743877845245,-1125.103967,0.00019892,2]
[357190756,1743877845256,-159.407534,0.00019892,2]
[357190757,1743877845265,-159.407534,0.00019892,2]
[357190758,1743877845274,-530.550013,0.00019892,2]
[357190759,1743877845283,-530.550013,0.00019892,2]
[357190760,1743877845292,-151.0,0.00019892,2]
[357190761,1743877845302,-151.0,0.00019893,2]
[357190762,1743877845311,-151.0,0.00019893,2]
[357190763,1743877845320,-151.0,0.00019893,2]
[357190764,1743877845330,-151.0,0.00019893,2]
[357190765,1743877845339,-500.0,0.00019893,2]
[357190766,1743877845348,-500.0,0.00019893,2]
[357190767,1743877845358,-337.7,0.00019893,2]
[357190768,1743877845368,-500.0,0.00019893,2]
[357190769,1743877845377,-500.0,0.00019894,2]
[357190770,1743877845386,-151.0,0.00019894,2]
[357190771,1743877845396,-416.4,0.00019894,2]
[357190772,1743877845405,-500.0,0.00019894,2]
[357190773,1743877845414,-152.0,0.00019894,2]
[357190774,1743877845424,-500.0,0.00019894,2]
[357190775,1743877845434,-500.0,0.00019894,2]
[357190776,1743877845444,-500.0,0.00019894,2]
[357190777,1743877845454,-1018.99,0.00019894,2]
[357190778,1743877845463,-467.751626,0.00019894,2]
[357190779,1743877845472,-467.751626,0.00019894,2]
[357190780,1743877845482,-211.18705403,0.00020067,2]
[357190781,1743877845491,-12458.93820146,0.00020088,2]
[357190782,1743877845503,-160.0,0.00020088,2]
[357190783,1743877845513,-160.0,0.00020088,2]
[357190784,1743877845522,-151.0,0.00020088,2]
[357190785,1743877845532,-151.0,0.00020088,2]
[357190786,1743877845542,-151.0,0.00020088,2]
[357190787,1743877845551,-475.281424,0.00020088,2]
[357190788,1743877845560,-475.281424,0.00020088,2]
[357190789,1743877845570,-174.114037,0.00020088,2]
[357190790,1743877845579,-174.114037,0.00020088,2]
[357190791,1743877845589,-151.0,0.00020088,2]
[357190792,1743877845598,-151.0,0.00020088,2]
[357190793,1743877845608,-151.0,0.00020088,2]
[357190794,1743877845617,-207.4,0.00020157,2]
[357190795,1743877845627,-367.06,0.00020159,3]
[357190796,1743877845637,-274.8,0.00020167,2]
[357190797,1743877845646,-500.0,0.00020167,2]
[357190798,1743877845656,-500.0,0.00020167,2]
[357190799,1743877845665,-500.0,0.00020168,2]
[357190800,1743877845675,-500.0,0.00020168,2]
[357190801,1743877845685,-576.5,0.00020168,2]
[357190802,1743877845695,-500.0,0.00020168,2]
[357190803,1743877845704,-440.15,0.00020168,2]
[357190804,1743877845714,-1018.99,0.00020168,2]
[357190805,1743877845723,-2245.08546081,0.00020348,2]
[357190806,1743877845732,-151.0,0.00020441,2]
[357190807,1743877845742,-355.069765,0.00020441,2]
[357190808,1743877845751,-355.069765,0.00020441,2]
[357190809,1743877845760,-215.380226,0.00020441,2]
[357190810,1743877845769,-215.380226,0.00020441,2]
[357190811,1743877845779,-151.0,0.00020441,2]
[357190812,1743877845788,-815.917203,0.00020441,2]
[357190813,1743877845798,-815.917203,0.00020441,2]
[357190814,1743877845807,-151.0,0.00020441,2]
[357190815,1743877845817,-153.18017,0.00020441,2]
[357190816,1743877845826,-208.495409,0.00020441,2]